fUST/lending_fUST_20250725
["ID","MTS","AMOUNT","RATE_DAILY","PERIOD"]
[374756784,1753433445793,-151.0,0.00022231,2]
[374756785,1753433445803,-160.37715121,0.00022231,2]
[374756786,1753433445813,-231.28369723,0.00022242,2]
[374756787,1753433445824,-154.147234,0.00022273,3]
[374756788,1753433445834,-1358.02776166,0.00022279,6]
[374756789,1753433445844,-151.0,0.000223,7]
[374756790,1753433445854,-191.0,0.00022304,2]
[374756791,1753433445864,-1174.62488834,0.0002239,2]
[374756794,1753433445987,-2776.20796446,0.0002239,2]
[374756795,1753433446001,-470.96584799,0.00022398,2]
[374756797,1753433446011,-12556.83997866,0.000224,3]
[374756799,1753433446021,-201.0,0.000224,2]
[374756801,1753433446031,-214.7599002,0.000224,3]
[374756803,1753433446041,-160.0,0.000224,3]
[374756805,1753433446050,-154.147234,0.00022406,2]
[374756807,1753433446059,-500.0,0.00022463,2]
[374756809,1753433446069,-512.02683432,0.00022463,2]
[374756811,1753433446079,-500.0,0.00022463,2]
[374756813,1753433446089,-500.0,0.00022463,2]
[374756815,1753433446099,-593.24961039,0.00022463,2]
[374756817,1753433446109,-1501.84,0.00022465,2]
[374756819,1753433446119,-455.25909271,0.00022468,2]
[374756821,1753433446129,-2004.61677739,0.0002247,3]
[374756823,1753433446138,-501.76426624,0.00022473,2]
[374756825,1753433446149,-500.0,0.00022473,2]
[374756827,1753433446159,-500.0,0.00022473,2]
[374756829,1753433446168,-500.0,0.00022473,2]
[374756831,1753433446178,-500.0,0.00022473,2]
[374756833,1753433446188,-500.0,0.00022473,2]
[374756835,1753433446198,-201.5582691,0.00022473,2]
[374756837,1753433446208,-500.85938678,0.00022473,2]
[374756839,1753433446218,-500.0,0.00022473,2]
[374756841,1753433446228,-19994.30212315,0.0002249,7]
[374756844,1753433446244,-23211.99997939,0.0002249,7]
[374756848,1753433446271,-73846.49155436,0.0002249,7]
[374756921,1753433447007,-38623.15493986,0.0002249,7]
[374756923,1753433447023,-2571.28179995,0.0002249,7]
[374756964,1753433475096,-246.29791906,0.00017006,2]
[374756965,1753433478212,-335.86975473,0.00017006,2]
[374756966,1753433478239,-3.16117119,0.00017007,2]
[374756967,1753433480936,-345.80873864,0.00017007,2]
[374756968,1753433484544,-125.82132642,0.00017007,2]
[374756969,1753433485512,40.39809556,0.00017006,2]
[374756970,1753433508442,-334.34000816,0.00017005,2]
[374756971,1753433511061,-84.9551456,0.00017005,2]
[374756972,1753433511085,-367.02209441,0.00017007,2]
[374756973,1753433537578,-297.20059298,0.00017005,2]
[374756974,1753433540850,-202.79940702,0.00017005,2]
[374756975,1753433540875,-12.24648376,0.00017005,2]
[374756976,1753433542995,-176.14055741,0.00017005,2]
[374756977,1753433543018,-179.04206031,0.00017005,2]
[374756978,1753433546174,-18.90077177,0.00017005,2]
[374756979,1753433546196,-149.31643584,0.00017005,2]
[374756980,1753433549058,-112.67852998,0.00017005,2]
[374756981,1753433549082,-91.6659165,0.00017005,2]
[374756982,1753433550829,-260.03492048,0.00017005,2]
[374756983,1753433553552,-160.54564678,0.00017005,2]
[374756984,1753433553579,-2.13101804,0.00017006,2]
[374756985,1753433555824,-170.07113935,0.00017006,2]
[374756986,1753433560078,-264.32063002,0.00017005,2]
[374756987,1753433562667,-211.27596571,0.00017006,2]
[374756988,1753433566543,-76.5218769,0.00017006,2]
[374756989,1753433566567,-131.70154058,0.00017006,2]
[374756990,1753433569162,-240.42864513,0.00017006,2]
[374756991,1753433574001,-87.86981429,0.00017006,2]
[374756992,1753433574024,-131.1208482,0.00017006,2]
[374756993,1753433575530,-220.22070756,0.00017006,2]
[374756994,1753433576661,412.405983,0.00013699,2]
[374756995,1753433577628,-108.65844424,0.00017006,2]
[374756996,1753433577651,-265.54619809,0.00017006,2]
[374756997,1753433580976,-194.45380191,0.00017006,2]
[374756998,1753433580998,-173.95512827,0.00017006,2]
[374757000,1753433583638,-300.0,0.00017005,2]
[374757001,1753433583662,-12.85797508,0.00017006,2]
[374757002,1753433589713,-403.41627574,0.00017006,2]
[374757003,1753433589736,-47.86574918,0.00017006,2]
[374757004,1753433591983,-295.86,0.00017006,2]
[374757005,1753433597070,-116.27425082,0.00017006,2]
[374757006,1753433597094,-65.32741357,0.00017006,2]
[374757007,1753433598699,-158.79584457,0.00017006,2]
[374757008,1753433601368,-235.87674186,0.00017006,2]
[374757009,1753433601392,-5.23354362,0.00017006,2]
[374757010,1753433605841,-157.37469002,0.00017006,2]
[374757011,1753433608521,-293.05176636,0.00017006,2]
[374757012,1753433608544,-134.59325629,0.00017006,2]
[374757013,1753433610113,-237.21177012,0.00017006,2]
[374757014,1753433613262,-88.19497359,0.00017006,2]
[374757015,1753433613286,-98.1140069,0.00017006,2]
[374757016,1753433617088,-151.5912497,0.00017006,2]
[374757017,1753433619914,-2.56854673,0.00017006,2]
[374757018,1753433619952,-233.58625228,0.00017006,2]
[374757019,1753433623420,-226.41374772,0.00017006,2]
[374757020,1753433623446,-71.53861032,0.00017006,2]
[374757021,1753433625745,-211.52555568,0.00017006,2]
[374757022,1753433629885,-176.935834,0.00017006,2]
[374757023,1753433629908,-92.2505378,0.00017006,2]
[374757024,1753433632636,-225.14193083,0.00017006,2]
[374757025,1753433637429,-182.60753137,0.00017006,2]
[374757026,1753433637452,-183.73405841,0.00017006,2]
[374757027,1753433640896,-168.42205832,0.00017006,2]
[374757028,1753433644507,-300.0,0.00017005,2]
[374757029,1753433644528,-107.84388327,0.00017006,2]
[374757030,1753433644550,-15.82941195,0.00017006,2]
[374757031,1753433647054,-190.84566382,0.00017006,2]
[374757032,1753433652483,-253.32492423,0.00017006,2]
[374757033,1753433652506,-119.1955642,0.00017006,2]
[374757034,1753433654308,-230.78635502,0.00017006,2]
[374757035,1753433657049,-110.01808078,0.00017006,2]
[374757036,1753433657072,-253.45879075,0.00017006,2]
[374757037,1753433661570,-206.54120925,0.00017006,2]
[374757038,1753433661592,-43.18364579,0.00017006,2]
[374757040,1753433664077,-156.01191841,0.00017006,2]
[374757041,1753433669734,-194.37240103,0.00017006,2]
[374757042,1753433671925,-66.43203477,0.00017006,2]
[374757043,1753433671949,-108.64746512,0.00017006,2]
[374757044,1753433676819,-211.27596571,0.00017005,2]
[374757045,1753433680133,-224.44582273,0.00017005,2]
[374757046,1753433682301,-135.33054847,0.00017005,2]
[374757047,1753433682326,-16.3288347,0.00017005,2]
[374757048,1753433688416,-200.8739671,0.00017005,2]
[374757049,1753433691314,-185.2328191,0.00017005,2]
[374757050,1753433691340,-80.17615989,0.00017005,2]
[374757051,1753433693939,-204.16023648,0.00017005,2]
[374757052,1753433697118,-178.34470795,0.00017005,2]
[374757053,1753433698730,-37.31889568,0.00017005,2]
[374757054,1753433698754,-175.64314192,0.00017005,2]
[374757055,1753433702964,-231.36999708,0.00017004,2]
[374757056,1753433704603,-68.63000292,0.00017004,2]
[374757057,1753433704628,-92.20930817,0.00017004,2]
[374757058,1753433706208,-133.79069183,0.00017004,2]
[374757059,1753433706231,-77.60379763,0.00017004,2]
[374757060,1753433711511,-222.39620237,0.00017004,2]
[374757061,1753433711533,-16.59323417,0.00017004,2]
[374757062,1753433717730,-283.40676583,0.00017004,2]
[374757063,1753433717754,-58.77894239,0.00017005,2]
[374757064,1753433722261,-263.29756285,0.00017005,2]
[374757065,1753433724498,-2.28035284,0.00017005,2]
[374757066,1753433724522,-165.33544157,0.00017005,2]
[374757067,1753433726583,-71.33560441,0.00017005,2]
[374757068,1753433726608,-141.19166219,0.00017005,2]
[374757069,1753433728788,-219.99682887,0.00017005,2]
[374757070,1753433731750,-138.81150894,0.00017005,2]
[374757071,1753433731777,-222.13981795,0.00017005,2]
[374757072,1753433734376,-215.2075432,0.00017005,2]
[374757073,1753433737274,-62.65263885,0.00017005,2]
[374757074,1753433737297,-92.04007056,0.00017005,2]
[374757075,1753433740072,-191.30740868,0.00017005,2]
[374757076,1753433740094,-28.50541111,0.00017005,2]
[374757077,1753433743323,-232.13883188,0.00017005,2]
[374757078,1753433746586,-105.69734679,0.00017005,2]
[374757079,1753433746610,-346.10240307,0.00017005,2]
[374757080,1753433749847,-153.89759693,0.00017005,2]
[374757081,1753433749871,-163.01983342,0.00017005,2]
[374757082,1753433755786,-254.24139599,0.00017005,2]
[374757083,1753433760428,-154.92638066,0.00017005,2]
[374757084,1753433762638,-15.75192932,0.00017005,2]
[374757085,1753433762662,-257.75677714,0.00017005,2]
[374757086,1753433765411,-300.0,0.00017004,2]
[374757087,1753433765437,-28.18699312,0.00017005,2]
[374757088,1753433774622,-305.07361937,0.00017005,2]
[374757089,1753433780512,-36.4748833,0.00017005,2]
[374757090,1753433780537,-167.761967,0.00017005,2]
[374757091,1753433789846,-7.31753289,0.00017005,2]
[374757092,1753433789874,-158.34245895,0.00017005,2]
[374757093,1753433792645,-52.93350676,0.00017005,2]
[374757094,1753433792675,-299.30956819,0.00017005,2]
[374757095,1753433794851,-130.08635114,0.00017005,2]
[374757096,1753433794883,-75.13412577,0.00017005,2]
[374757097,1753433800026,-213.49734295,0.00017004,2]
[374757098,1753433803059,-160.05986185,0.00017004,2]
[374757099,1753433805887,-126.4427952,0.00017004,2]
[374757100,1753433805910,-109.09294356,0.00017004,2]
[374757101,1753433830817,151.17579642,0.00016496,2]
[374757103,1753433919783,168.31133804,0.00016906,2]
[374757104,1753433942914,-183.73405841,0.00017002,2]
[374757105,1753433948594,-116.26594159,0.00017002,2]
[374757106,1753434004784,-160.81456097,0.00017002,2]
[374757107,1753434009168,-139.18543903,0.00017002,2]
[374757108,1753434009194,-168.12279289,0.00017002,2]
[374757109,1753434023869,-198.13357535,0.00017002,2]
[374757110,1753434039834,-204.54803709,0.00017002,2]
[374757111,1753434054535,-113.19559467,0.00017002,2]
[374757112,1753434054561,-98.08037104,0.00017002,2]
[374757113,1753434060409,185.890027,0.00016143,2]
[374757115,1753434069098,-205.33103113,0.00017001,2]
[374757116,1753434083580,-94.66896887,0.00017001,2]
[374757117,1753434083603,-61.97949081,0.00017002,2]
[374757118,1753434083626,-179.22129505,0.00017002,2]
[374757119,1753434100383,-196.44826177,0.00017002,2]
[374757120,1753434114724,-124.33044318,0.00017002,2]
[374757121,1753434114763,-111.54629868,0.00017002,2]
[374757122,1753434129839,-300.0,0.00017001,2]
[374757123,1753434129861,-100.89564963,0.00017002,2]
[374757124,1753434135014,168.31133804,0.00016906,2]
[374757125,1753434144151,-18.05824144,0.00017002,2]
[374757126,1753434144174,-193.46731424,0.00017002,2]
[374757130,1753434262498,-300.0,0.00017003,2]
[374757133,1753434307560,-225.28293179,0.00017002,2]
[374757134,1753434309923,-74.71706821,0.00017002,2]
[374757135,1753434341163,168.31133804,0.00016905,2]
[374757136,1753434365005,-172.2222366,0.00017002,2]
[374757137,1753434382526,-127.7777634,0.00017002,2]
[374757138,1753434389140,4955.88644344,0.00016074,2]
[374757139,1753434389164,19944.11355656,0.00016074,2]
[374757140,1753434397492,55.88644344,0.00017,2]
[374757141,1753434397516,4788.15234594,0.00017,2]
[374757142,1753434405485,5000.0,0.00017,2]
[374757143,1753434406617,168.31734441,0.00016903,2]
[374757144,1753434406985,168.31734441,0.00016905,2]
[374757145,1753434486100,-222.1580173,0.00017002,2]
[374757146,1753434490467,-77.8419827,0.00017002,2]
[374757147,1753434498967,-235.72598253,0.00017002,2]
[374757148,1753434500512,598.0,0.00023,90]
[374757149,1753434505387,-224.27401747,0.00017002,2]
[374757150,1753434519750,-185.98382119,0.00017002,2]
[374757151,1753434533498,-262.32167715,0.00017002,2]
[374757152,1753434542890,391.785683,0.00013699,2]
[374757153,1753434546550,168.31133804,0.00016904,2]
[374757155,1753434548620,-226.41374772,0.00017001,2]
[374757161,1753434563001,-73.58625228,0.00017001,2]
[374757162,1753434563024,-11.69450166,0.00017002,2]
[374757163,1753434563047,-83.58913955,0.00017002,2]
[374757164,1753434579676,-423.43186937,0.00017002,2]
[374757165,1753434597128,-153.85899108,0.00017002,2]
[374757166,1753434597153,-152.04225944,0.00017002,2]
[374757169,1753434608803,-300.0,0.00017001,2]
[374757170,1753434608827,-103.41627574,0.00017001,2]
[374757172,1753434623609,-196.58372426,0.00017001,2]
[374757173,1753434623633,-184.32743504,0.00017001,2]
[374757205,1753434632481,-1015.67256496,0.00017001,2]
[374757206,1753434632495,-489.60109318,0.00017001,2]
[374757207,1753434632506,-94.25565962,0.00017002,2]
[374757208,1753434632518,-460.0,0.00017002,2]
[374757209,1753434632533,-1606.68,0.00017002,2]
[374757210,1753434632553,-1158.46,0.00017002,2]
[374757211,1753434632564,-460.0,0.00017002,2]
[374757214,1753434632576,-460.0,0.00017002,2]
[374757217,1753434632587,-460.0,0.00017004,2]
[374757219,1753434632597,-460.0,0.00017004,2]
[374757221,1753434632608,-460.0,0.00017004,2]
[374757223,1753434632620,-873.85,0.00017004,2]
[374757225,1753434632632,-460.0,0.00017004,2]
[374757226,1753434632644,-460.0,0.00017004,2]
[374757227,1753434632658,-460.0,0.00017004,2]
[374757228,1753434632670,-482.17,0.00017004,2]
[374757229,1753434632683,-460.0,0.00017004,2]
[374757230,1753434632695,-351.789884,0.00017004,2]
[374757231,1753434632706,-460.0,0.00017004,2]
[374757232,1753434632716,-460.0,0.00017004,2]
[374757233,1753434632726,-460.0,0.00017004,2]
[374757234,1753434632737,-460.0,0.00017004,2]
[374757235,1753434632749,-293.05176636,0.00017004,2]
[374757236,1753434632762,-460.0,0.00017004,2]
[374757237,1753434632775,-226.41374772,0.00017004,2]
[374757238,1753434632788,-500.0,0.00017004,2]
[374757239,1753434632801,-459.59806917,0.00017004,2]
[374757240,1753434632812,-460.0,0.00017005,2]
[374757241,1753434632822,-460.0,0.00017005,2]
[374757242,1753434632834,-464.24865834,0.00017005,2]
[374757243,1753434632845,-460.0,0.00017005,2]
[374757244,1753434632857,-270.54291764,0.00017005,2]
[374757245,1753434632871,-460.0,0.00017005,2]
[374757246,1753434632883,-460.0,0.00017005,2]
[374757247,1753434632895,-460.0,0.00017005,2]
[374757248,1753434632907,-460.0,0.00017005,2]
[374757249,1753434632918,-460.0,0.00017005,2]
[374757250,1753434632932,-460.0,0.00017005,2]
[374757251,1753434632943,-215.2075432,0.00017005,2]
[374757252,1753434632954,-464.30066777,0.00017005,2]
[374757253,1753434632964,-460.0,0.00017005,2]
[374757254,1753434632974,-460.0,0.00017005,2]
[374757255,1753434632986,-460.0,0.00017005,2]
[374757256,1753434632996,-460.0,0.00017005,2]
[374757257,1753434633008,-460.0,0.00017005,2]
[374757258,1753434633019,-273.50870646,0.00017005,2]
[374757259,1753434633029,-591.70154058,0.00017005,2]
[374757260,1753434633042,-373.25761849,0.00017005,2]
[374757261,1753434633059,-146.32810397,0.00017005,2]
[374757262,1753434633071,-202.07786949,0.00017005,2]
[374757264,1753434633083,-268.63884545,0.00017005,2]
[374757266,1753434633094,-82.74538816,0.00017005,2]
[374757268,1753434633107,-377.25461184,0.00017005,2]
[374757270,1753434633117,-460.0,0.00017005,2]
[374757272,1753434633128,-460.0,0.00017005,2]
[374757274,1753434633139,-230.78635502,0.00017005,2]
[374757275,1753434633152,-460.0,0.00017005,2]
[374757276,1753434633162,-460.0,0.00017005,2]
[374757277,1753434633175,-460.0,0.00017005,2]
[374757278,1753434633186,-460.0,0.00017005,2]
[374757279,1753434633198,-311.66842281,0.00017005,2]
[374757280,1753434633211,-148.33157719,0.00017005,2]
[374757281,1753434633223,-145.24414285,0.00017005,2]
[374757282,1753434633236,-251.5676333,0.00017005,2]
[374757283,1753434633250,-63.18822385,0.00017005,2]
[374757284,1753434633261,-205.33103113,0.00017005,2]
[374757285,1753434633272,-460.0,0.00017005,2]
[374757286,1753434633282,-460.0,0.00017005,2]
[374757287,1753434633294,-460.0,0.00017005,2]
[374757288,1753434633305,-460.0,0.00017005,2]
[374757289,1753434633316,-460.0,0.00017005,2]
[374757290,1753434633329,-86.47045909,0.00017005,2]
[374757291,1753434633342,-373.52954091,0.00017005,2]
[374757292,1753434633353,-460.0,0.00017005,2]
[374757293,1753434633364,-460.0,0.00017005,2]
[374757294,1753434633374,-460.0,0.00017005,2]
[374757295,1753434633386,-460.0,0.00017005,2]
[374757296,1753434633396,-460.0,0.00017005,2]
[374757297,1753434633407,-460.0,0.00017005,2]
[374757298,1753434633417,-460.0,0.00017005,2]
[374757299,1753434633429,-460.0,0.00017005,2]
[374757300,1753434633439,-460.0,0.00017005,2]
[374757301,1753434633450,-460.0,0.00017005,2]
[374757302,1753434633461,-351.35253488,0.00017005,2]
[374757303,1753434633472,-460.0,0.00017005,2]
[374757304,1753434633484,-460.0,0.00017005,2]
[374757305,1753434633495,-460.0,0.00017005,2]
[374757306,1753434633506,-460.0,0.00017005,2]
[374757307,1753434633516,-460.0,0.00017005,2]
[374757308,1753434633528,-460.0,0.00017005,2]
[374757309,1753434633539,-460.0,0.00017005,2]
[374757310,1753434633550,-460.0,0.00017005,2]
[374757311,1753434633561,-460.0,0.00017005,2]
[374757312,1753434633572,-460.0,0.00017005,2]
[374757313,1753434633583,-460.0,0.00017005,2]
[374757314,1753434633594,-460.0,0.00017005,2]
[374757315,1753434633610,-460.0,0.00017005,2]
[374757316,1753434633621,-547.75,0.00017005,2]
[374757317,1753434633632,-460.0,0.00017005,2]
[374757318,1753434633643,-460.0,0.00017005,2]
[374757319,1753434633657,-173.30979647,0.00017005,2]
[374757320,1753434633670,-429.14,0.00017005,2]
[374757321,1753434633687,-110.77020353,0.00017005,2]
[374757322,1753434633699,-460.0,0.00017005,2]
[374757323,1753434633711,-1094.05,0.00017005,2]
[374757324,1753434633723,-460.0,0.00017005,2]
[374757325,1753434633735,-460.0,0.00017005,2]
[374757326,1753434633745,-239.77929244,0.00017005,2]
[374757327,1753434633756,-460.0,0.00017005,2]
[374757328,1753434633767,-460.0,0.00017005,2]
[374757329,1753434633778,-460.0,0.00017005,2]
[374757330,1753434633789,-526.21,0.00017005,2]
[374757331,1753434633801,-460.0,0.00017005,2]
[374757332,1753434633812,-609.86,0.00017005,2]
[374757333,1753434633824,-224.91067357,0.00017005,2]
[374757334,1753434633837,-235.08932643,0.00017005,2]
[374757335,1753434634016,-602.41153146,0.00017006,2]
[374757336,1753434634027,-460.0,0.00017006,2]
[374757337,1753434634037,-460.0,0.00017006,2]
[374757338,1753434634046,-529.57106144,0.00017006,2]
[374757339,1753434634056,-460.0,0.00017006,2]
[374757340,1753434634066,-460.0,0.00017006,2]
[374757341,1753434634075,-460.0,0.00017007,2]
[374757342,1753434634085,-504.10091007,0.00017007,2]
[374757343,1753434634095,-465.71847164,0.00017007,2]
[374757344,1753434634105,-660.88,0.00017276,2]
[374757345,1753434634116,-1606.68,0.00017276,2]
[374757346,1753434634126,-1158.46,0.00017276,2]
[374757347,1753434634135,-452.2623146,0.00017278,2]
[374757358,1753434638271,-265.89062145,0.00017001,2]
[374757359,1753434638281,-4.50725702,0.00017001,2]
[374757360,1753434638294,-495.49274298,0.00017001,2]
[374757361,1753434638303,-500.0,0.00017001,2]
[374757362,1753434638313,-501.01164432,0.00017001,2]
[374757363,1753434638325,-105.19173306,0.00017001,2]
[374757364,1753434638334,-500.0,0.00017001,2]
[374757365,1753434638344,-62.39630208,0.00017001,2]
[374757366,1753434638356,-101.30163582,0.00017001,2]
[374757367,1753434638365,-500.0,0.00017001,2]
[374757368,1753434638383,-500.0,0.00017001,2]
[374757369,1753434638397,-500.0,0.00017001,2]
[374757370,1753434638407,-486.82142718,0.00017001,2]
[374757371,1753434638417,-500.0,0.00017001,2]
[374757372,1753434638430,-351.88928518,0.00017001,2]
[374757373,1753434638440,-500.0,0.00017001,2]
[374757374,1753434638450,-500.0,0.00017001,2]
[374757375,1753434638460,-387.20981804,0.00017001,2]
[374757376,1753434638470,-500.0,0.00017001,2]
[374757377,1753434638480,-500.0,0.00017001,2]
[374757378,1753434638490,-500.0,0.00017001,2]
[374757379,1753434638500,-500.0,0.00017001,2]
[374757380,1753434638510,-500.0,0.00017001,2]
[374757381,1753434638520,-500.0,0.00017001,2]
[374757382,1753434638530,-500.0,0.00017001,2]
[374757383,1753434638539,-500.0,0.00017001,2]
[374757384,1753434638549,-500.0,0.00017001,2]
[374757385,1753434638559,-500.0,0.00017001,2]
[374757386,1753434638569,-500.0,0.00017001,2]
[374757387,1753434638580,-500.0,0.00017001,2]
[374757388,1753434638590,-500.0,0.00017001,2]
[374757389,1753434638600,-500.0,0.00017001,2]
[374757390,1753434638610,-500.0,0.00017001,2]
[374757391,1753434638621,-500.0,0.00017001,2]
[374757392,1753434638631,-500.0,0.00017001,2]
[374757393,1753434638641,-500.0,0.00017001,2]
[374757394,1753434638653,-500.0,0.00017001,2]
[374757395,1753434638665,-500.0,0.00017001,2]
[374757396,1753434638675,-500.0,0.00017001,2]
[374757397,1753434638691,-500.0,0.00017001,2]
[374757398,1753434638701,-500.0,0.00017001,2]
[374757399,1753434638711,-498.75998479,0.00017001,2]
[374757400,1753434638721,-500.0,0.00017001,2]
[374757401,1753434638732,-605.25164421,0.00017001,2]
[374757402,1753434638742,-294.2662048,0.00017001,2]
[374757403,1753434638757,-241.51730764,0.00017001,2]
[374757404,1753434638768,-2072.43468036,0.00017002,2]
[374757407,1753434639917,-233.58625228,0.00017002,2]
[374757458,1753434640472,-3222.4252085,0.00017002,2]
[374757567,1753434641648,-46.10548015,0.00017002,2]
[374757746,1753434643602,-500.0,0.00017001,2]
[374757747,1753434643611,-1496.83040988,0.00017002,2]
[374757748,1753434643623,-609.52765627,0.00017002,2]
[374758012,1753434646323,-304.71812157,0.00017002,2]
[374758015,1753434646335,-460.0,0.00017002,2]
[374758017,1753434646344,-206.54120925,0.00017004,2]
[374758019,1753434646354,-460.0,0.00017005,2]
[374758021,1753434646364,-149.74788639,0.00017278,2]
[374758023,1753434646374,-873.85,0.00017278,2]
[374758025,1753434646383,-460.0,0.00017278,2]
[374758027,1753434646393,-482.17,0.00017278,2]
[374758029,1753434646403,-460.0,0.00017278,2]
[374758032,1753434646416,-460.0,0.00017278,2]
[374758034,1753434646426,-460.0,0.00017278,2]
[374758036,1753434646437,-460.0,0.00017278,2]
[374758038,1753434646448,-460.0,0.00017279,2]
[374758040,1753434646457,-528.53,0.00017279,2]
[374758042,1753434646467,-460.0,0.00017279,2]
[374758044,1753434646477,-460.0,0.00017279,2]
[374758046,1753434646486,-460.0,0.00017279,2]
[374758048,1753434646496,-547.75,0.00017279,2]
[374758050,1753434646505,-460.0,0.00017279,2]
[374758052,1753434646515,-460.0,0.00017279,2]
[374758054,1753434646525,-713.22,0.00017279,2]
[374758056,1753434646534,-460.0,0.00017279,2]
[374758058,1753434646543,-1094.05,0.00017279,2]
[374758060,1753434646554,-460.0,0.00017279,2]
[374758062,1753434646563,-460.0,0.00017279,2]
[374758064,1753434646573,-460.0,0.00017279,2]
[374758066,1753434646582,-460.0,0.00017279,2]
[374758068,1753434646592,-460.0,0.00017279,2]
[374758071,1753434646603,-526.21,0.00017279,2]
[374758073,1753434646613,-460.0,0.00017279,2]
[374758075,1753434646622,-609.86,0.00017279,2]
[374758077,1753434646634,-460.0,0.00017279,2]
[374758079,1753434646644,-460.0,0.00017279,2]
[374758081,1753434646654,-461.04965225,0.0001728,2]
[374758083,1753434646666,-460.48124761,0.0001728,2]
[374758085,1753434646676,-460.0,0.0001728,2]
[374758087,1753434646687,-454.12860719,0.0001728,2]
[374758089,1753434646698,-460.0,0.0001728,2]
[374758091,1753434646708,-460.0,0.0001728,2]
[374758093,1753434646717,-462.4016199,0.00017281,2]
[374758095,1753434646726,-660.88,0.0001755,2]
[374758097,1753434646739,-1606.68,0.0001755,2]
[374758099,1753434646749,-1158.46,0.0001755,2]
[374758101,1753434646759,-873.85,0.00017552,2]
[374758103,1753434646768,-460.0,0.00017552,2]
[374758106,1753434646778,-482.17,0.00017552,2]
[374758108,1753434646788,-460.0,0.00017552,2]
[374758110,1753434646799,-460.0,0.00017552,2]
[374758112,1753434646808,-460.0,0.00017552,2]
[374758114,1753434646817,-460.0,0.00017552,2]
[374758116,1753434646827,-460.0,0.00017553,2]
[374758118,1753434646837,-460.0,0.00017553,2]
[374758120,1753434646846,-460.0,0.00017553,2]
[374758121,1753434646855,-547.75,0.00017553,2]
[374758123,1753434646864,-460.0,0.00017553,2]
[374758125,1753434646874,-460.0,0.00017553,2]
[374758127,1753434646883,-713.22,0.00017553,2]
[374758144,1753434647026,-460.0,0.00017553,2]
[374758146,1753434647036,-1094.05,0.00017553,2]
[374758148,1753434647046,-460.0,0.00017553,2]
[374758150,1753434647057,-460.0,0.00017553,2]
[374758152,1753434647075,-460.0,0.00017553,2]
[374758154,1753434647086,-460.0,0.00017553,2]
[374758156,1753434647096,-460.0,0.00017553,2]
[374758158,1753434647105,-526.21,0.00017553,2]
[374758160,1753434647116,-460.0,0.00017553,2]
[374758162,1753434647125,-609.86,0.00017553,2]
[374758164,1753434647134,-460.0,0.00017553,2]
[374758166,1753434647144,-460.0,0.00017553,2]
[374758168,1753434647154,-460.0,0.00017554,2]
[374758170,1753434647164,-460.0,0.00017554,2]
[374758172,1753434647174,-251.9596607,0.00017824,2]
[374758174,1753434647185,-660.88,0.00017824,2]
[374758176,1753434647195,-1606.68,0.00017824,2]
[374758178,1753434647205,-1158.46,0.00017824,2]
[374758180,1753434647223,-873.85,0.00017826,2]
[374758182,1753434647237,-460.0,0.00017826,2]
[374758184,1753434647247,-482.17,0.00017826,2]
[374758186,1753434647258,-460.0,0.00017826,2]
[374758188,1753434647268,-460.0,0.00017826,2]
[374758190,1753434647278,-460.0,0.00017826,2]
[374758192,1753434647288,-460.0,0.00017826,2]
[374758194,1753434647298,-460.0,0.00017827,2]
[374758197,1753434647309,-460.0,0.00017827,2]
[374758199,1753434647319,-460.0,0.00017827,2]
[374758201,1753434647329,-547.75,0.00017827,2]
[374758203,1753434647339,-460.0,0.00017827,2]
[374758205,1753434647349,-460.0,0.00017827,2]
[374758207,1753434647360,-713.22,0.00017827,2]